bitfinex/quotes_BTCUSD_20250607
["timestamp","ask_amount","ask_price","bid_price","bid_amount"]
[1749317313118,0.1953184,105650.0,105640.0,0.37508]
[1749317313313,0.21308098,105650.0,105640.0,0.37508]
[1749317313537,0.1953184,105650.0,105640.0,0.37508]
[1749317313955,0.21308098,105650.0,105640.0,0.37508]
[1749317314154,0.21308099,105650.0,105640.0,0.37508]
[1749317314355,0.1953184,105650.0,105640.0,0.37508]
[1749317314563,0.21308125,105650.0,105640.0,0.37508]
[1749317314765,0.1953184,105650.0,105640.0,0.37508]
[1749317314893,0.21308125,105650.0,105640.0,0.37508]
[1749317315292,0.1953184,105650.0,105640.0,0.37508]
[1749317316103,0.21308125,105650.0,105640.0,0.37508]
[1749317316430,0.21308098,105650.0,105640.0,0.37508]
[1749317316635,0.21308097,105650.0,105640.0,0.37508]
[1749317316829,0.21308089,105650.0,105640.0,0.37508]
[1749317317030,0.21604133,105650.0,105640.0,0.37508]
[1749317317346,0.1953184,105650.0,105640.0,0.37508]
[1749317317715,0.21308106,105650.0,105640.0,0.37508]
[1749317318183,0.21307795,105650.0,105640.0,0.37508]
[1749317318659,0.21307793,105650.0,105640.0,0.37508]
[1749317318893,0.21307792,105650.0,105640.0,0.37508]
[1749317319111,0.21307749,105650.0,105640.0,0.39138]
[1749317319310,0.21307762,105650.0,105640.0,0.39138]
[1749317319520,0.21603791,105650.0,105640.0,0.39138]
[1749317319713,0.1953184,105650.0,105640.0,0.39138]
[1749317319927,0.21307769,105650.0,105640.0,0.39138]
[1749317320451,0.21307763,105650.0,105640.0,0.39138]
[1749317320602,0.21603809,105650.0,105640.0,0.39138]
[1749317320828,0.21307766,105650.0,105640.0,0.40073876]
[1749317321036,0.2160381,105650.0,105640.0,0.40073876]
[1749317321264,0.19827884,105650.0,105640.0,0.39138]
[1749317321467,0.21307758,105650.0,105640.0,0.39138]
[1749317321841,0.1953184,105650.0,105640.0,0.39138]
[1749317322057,0.21307768,105650.0,105640.0,0.39138]
[1749317322263,0.2130777,105650.0,105640.0,0.39138]
[1749317322491,0.1953184,105650.0,105640.0,0.39138]
[1749317322646,0.2130777,105650.0,105640.0,0.39138]
[1749317323041,0.1953184,105650.0,105640.0,0.39138]
[1749317323384,0.2130777,105650.0,105640.0,0.39138]
[1749317323596,0.21307752,105650.0,105640.0,0.39138]
[1749317323754,0.19827886,105650.0,105640.0,0.39138]
[1749317323955,0.1953184,105650.0,105640.0,0.39138]
[1749317324272,0.19827885,105650.0,105640.0,0.39138]
[1749317324471,0.21307762,105650.0,105640.0,0.39138]
[1749317324680,0.1953184,105650.0,105640.0,0.39138]
[1749317324865,0.21603808,105650.0,105640.0,0.39138]
[1749317325061,0.21307768,105650.0,105640.0,0.39138]
[1749317325267,0.21603814,105650.0,105640.0,0.39138]
[1749317325609,0.1953184,105650.0,105640.0,0.39138]
[1749317325900,0.21307768,105650.0,105640.0,0.39138]
[1749317326103,0.2160374,105650.0,105640.0,0.39138]
[1749317326483,0.19827886,105650.0,105640.0,0.39138]
[1749317326689,0.2160374,105650.0,105640.0,0.39138]
[1749317326889,0.21307694,105650.0,105640.0,0.39138]
[1749317328177,0.1953184,105650.0,105640.0,0.39138]
[1749317328536,0.21307772,105650.0,105640.0,0.39138]
[1749317328741,0.1953184,105650.0,105640.0,0.39138]
[1749317328935,0.21307773,105650.0,105640.0,0.39138]
[1749317329119,0.1953184,105650.0,105640.0,0.39138]
[1749317329578,0.21307773,105650.0,105640.0,0.39138]
[1749317329738,0.21307772,105650.0,105640.0,0.39138]
[1749317330147,0.1953184,105650.0,105640.0,0.39138]
[1749317330347,0.21307773,105650.0,105640.0,0.39138]
[1749317330587,0.21307773,105650.0,105640.0,0.37508]
[1749317331016,0.21307775,105650.0,105640.0,0.37508]
[1749317331433,0.21307832,105650.0,105640.0,0.37508]
[1749317332003,0.1953184,105650.0,105640.0,0.37508]
[1749317332204,0.21307832,105650.0,105640.0,0.37508]
[1749317333150,0.2130783,105650.0,105640.0,0.37508]
[1749317333512,0.19827884,105650.0,105640.0,0.37508]
[1749317333710,0.21603875,105650.0,105640.0,0.37508]
[1749317333941,0.21307831,105650.0,105640.0,0.37508]
[1749317334135,0.21307829,105650.0,105640.0,0.37508]
[1749317334339,0.21603873,105650.0,105640.0,0.37508]
[1749317334540,0.1953184,105650.0,105640.0,0.37508]
[1749317334715,0.21307839,105650.0,105640.0,0.37508]
[1749317334922,0.1953184,105650.0,105640.0,0.37508]
[1749317335268,0.21307839,105650.0,105640.0,0.37508]
[1749317335805,0.19827883,105650.0,105640.0,0.37508]
[1749317336111,0.1953184,105650.0,105640.0,0.37508]
[1749317336319,0.21603858,105650.0,105640.0,0.37508]
[1749317336819,0.21307816,105650.0,105640.0,0.37508]
[1749317337020,0.1953184,105650.0,105640.0,0.37508]
[1749317337222,0.21307841,105650.0,105640.0,0.37508]
[1749317338017,0.1953184,105650.0,105640.0,0.37508]
[1749317338149,0.21307841,105650.0,105640.0,0.37508]
[1749317338738,0.1953184,105650.0,105640.0,0.37508]
[1749317338922,0.21307841,105650.0,105640.0,0.37508]
[1749317339072,0.1953184,105650.0,105640.0,0.37508]
[1749317339270,0.21307871,105650.0,105640.0,0.37508]
[1749317339700,0.1953184,105650.0,105640.0,0.37508]
[1749317339903,0.21307871,105650.0,105640.0,0.37508]
[1749317340081,0.1953184,105650.0,105640.0,0.37508]
[1749317340690,0.21307869,105650.0,105640.0,0.37508]
[1749317340896,0.1953184,105650.0,105640.0,0.37508]
[1749317341098,0.21307869,105650.0,105640.0,0.37508]
[1749317341299,0.21307845,105650.0,105640.0,0.37508]
[1749317341469,0.1953184,105650.0,105640.0,0.37508]
[1749317341672,0.21307845,105650.0,105640.0,0.37508]
[1749317341911,0.1953184,105650.0,105640.0,0.37508]
[1749317342305,0.21307845,105650.0,105640.0,0.37508]
[1749317342515,0.1953184,105650.0,105640.0,0.37508]
[1749317342718,0.21307845,105650.0,105640.0,0.37508]
[1749317343608,0.21307846,105650.0,105640.0,0.37508]
[1749317343751,0.21307845,105650.0,105640.0,0.37508]
[1749317344126,0.1953184,105650.0,105640.0,0.37508]
[1749317344342,0.21307846,105650.0,105640.0,0.37508]
[1749317344543,0.1953184,105650.0,105640.0,0.37508]
[1749317344777,0.21307846,105650.0,105640.0,0.37508]
[1749317345465,0.1953184,105650.0,105640.0,0.37508]
[1749317345984,0.21307876,105650.0,105640.0,0.37508]
[1749317346183,0.1953184,105650.0,105640.0,0.37508]
[1749317346398,0.21307876,105650.0,105640.0,0.37508]
[1749317346596,0.1953184,105650.0,105640.0,0.37508]
[1749317346818,0.21307876,105650.0,105640.0,0.37508]
[1749317347218,0.1953184,105650.0,105640.0,0.37508]
[1749317348030,0.21307878,105650.0,105640.0,0.37508]
[1749317348695,0.21308016,105650.0,105640.0,0.37508]
[1749317348895,0.1953184,105650.0,105640.0,0.37508]
[1749317349255,0.21308016,105650.0,105640.0,0.37508]
[1749317349450,0.1953184,105650.0,105640.0,0.37508]
[1749317349840,0.21308016,105650.0,105640.0,0.37508]
[1749317350048,0.1953184,105650.0,105640.0,0.37508]
[1749317350249,0.21308016,105650.0,105640.0,0.37508]
[1749317350573,0.1953184,105650.0,105640.0,0.37508]
[1749317350777,0.21308016,105650.0,105640.0,0.37508]
[1749317351030,0.1953184,105650.0,105640.0,0.37508]
[1749317351199,0.21308016,105650.0,105640.0,0.37508]
[1749317351420,0.21308015,105650.0,105640.0,0.37508]
[1749317351763,0.1953184,105650.0,105640.0,0.37508]
[1749317352158,0.21308014,105650.0,105640.0,0.37508]
[1749317352331,0.1953184,105650.0,105640.0,0.37508]
[1749317352571,0.21308012,105650.0,105640.0,0.37508]
[1749317352790,0.2130801,105650.0,105640.0,0.39088]
[1749317352995,0.21604055,105650.0,105640.0,0.39088]
[1749317353199,0.21604039,105650.0,105640.0,0.39088]
[1749317353399,0.21308,105650.0,105640.0,0.39088]
[1749317353607,0.21604037,105650.0,105640.0,0.58020222]
[1749317353818,0.1953184,105650.0,105640.0,0.39088]
[1749317354026,0.19827879,105650.0,105640.0,0.39088]
[1749317354230,0.1953184,105650.0,105640.0,0.39088]
[1749317354431,0.21604006,105650.0,105640.0,0.39088]
[1749317354630,0.21307969,105650.0,105640.0,0.40034611]
[1749317354842,0.21604004,105650.0,105640.0,0.58966833]
[1749317355263,0.1953184,105650.0,105640.0,0.58966833]
[1749317355451,0.21307959,105650.0,105640.0,0.58020222]
[1749317355655,0.21603994,105650.0,105640.0,0.58020222]
[1749317355894,0.21603994,105650.0,105640.0,0.39088]
[1749317356076,0.21603995,105650.0,105640.0,0.39088]
[1749317356632,0.21603997,105650.0,105640.0,0.39088]
[1749317356836,0.21307961,105650.0,105640.0,0.39088]
[1749317357041,0.19827875,105650.0,105640.0,0.39088]
[1749317357237,0.21603995,105650.0,105640.0,0.39088]
[1749317357439,0.21603995,105650.0,105640.0,0.58966833]
[1749317357695,0.19827875,105650.0,105640.0,0.58020222]
[1749317357897,0.21307951,105650.0,105640.0,0.58020222]
[1749317358529,0.21307335,105650.0,105640.0,0.58020222]
[1749317358685,0.1953184,105650.0,105640.0,0.58020222]
[1749317359086,0.21307334,105650.0,105640.0,0.58966833]
[1749317359289,0.1953184,105650.0,105640.0,0.58966833]
[1749317359926,0.21307333,105650.0,105640.0,0.60860028]
[1749317360125,0.1953184,105650.0,105640.0,0.60860028]
[1749317360331,0.006,105650.0,105640.0,1.04614802]
[1749317360507,0.02492907,105650.0,105640.0,1.04614802]
[1749317360709,0.03321894,105650.0,105640.0,1.04614802]
[1749317360909,0.02492898,105650.0,105640.0,1.04614802]
[1749317361121,0.06161335,105650.0,105640.0,1.04614802]
[1749317361340,0.05861335,105650.0,105640.0,1.04614802]
[1749317361515,0.06507847,105650.0,105640.0,1.04614802]
[1749317361711,0.06707847,105650.0,105640.0,1.04614802]
[1749317361936,0.04932389,105650.0,105640.0,1.04614802]
[1749317362178,0.03868291,105650.0,105640.0,1.04614802]
[1749317362311,0.03985877,105650.0,105640.0,1.04614802]
[1749317362519,0.04814775,105650.0,105640.0,1.1425475]
[1749317362730,0.03039383,105650.0,105640.0,1.1425475]
[1749317362937,0.04814772,105650.0,105640.0,1.1425475]
[1749317363134,0.03985886,105650.0,105640.0,1.1425475]
[1749317363457,0.05761276,105650.0,105640.0,1.1425475]
[1749317363622,0.0493238,105650.0,105640.0,1.1425475]
[1749317364070,0.06707626,105650.0,105640.0,1.1425475]
[1749317364322,0.06707575,105650.0,105640.0,0.73913099]
[1749317364492,0.0493238,105650.0,105640.0,0.73913099]
[1749317364646,0.04932452,105650.0,105640.0,0.73913099]
[1749317365053,0.06707692,105650.0,105640.0,0.73913099]
[1749317365253,0.06707695,105650.0,105640.0,0.73913099]
[1749317365492,0.04932452,105650.0,105640.0,0.73913099]
[1749317366070,0.06707684,105650.0,105640.0,0.73913099]
[1749317366271,0.04932452,105650.0,105640.0,0.73913099]
[1749317366861,0.0398594,105650.0,105640.0,0.73913099]
[1749317367059,0.002,105650.0,105640.0,0.73913099]
[1749317367290,0.02092943,105650.0,105640.0,1.1425475]
[1749317367486,0.01146476,105650.0,105640.0,1.1425475]
[1749317367864,0.02092943,105650.0,105640.0,1.1425475]
[1749317368071,0.02092934,105650.0,105640.0,1.1425475]
[1749317368348,0.02092925,105650.0,105640.0,1.1425475]
[1749317368652,0.02092934,105650.0,105640.0,1.1425475]
[1749317369260,0.03039419,105650.0,105640.0,1.1425475]
[1749317369663,0.001,105650.0,105640.0,1.1425475]
[1749317369870,0.27891756,105660.0,105650.0,0.23369885]
[1749317370237,0.27891756,105660.0,105650.0,0.24879885]
[1749317370843,0.48594471,105660.0,105650.0,0.23933427]
[1749317371047,0.4893838,105660.0,105650.0,0.23933427]
[1749317371267,0.4893838,105660.0,105650.0,0.22986942]
[1749317371630,0.48742375,105660.0,105650.0,0.22986942]
[1749317371832,0.49038382,105660.0,105650.0,0.22986942]
[1749317372030,0.49038385,105660.0,105650.0,0.22986942]
[1749317372283,0.47264305,105660.0,105650.0,0.22986942]
[1749317372508,0.49138385,105660.0,105650.0,0.22986942]
[1749317373174,0.30209693,105660.0,105650.0,0.22986942]
[1749317373396,0.31806512,105660.0,105650.0,0.24879885]
[1749317373608,0.50735147,105660.0,105650.0,0.24879903]
[1749317374052,0.48961093,105660.0,105650.0,0.24879903]
[1749317374289,0.51031145,105660.0,105650.0,0.24879903]
[1749317374500,0.48961093,105660.0,105650.0,0.2582637]
[1749317375209,0.29086023,105660.0,105650.0,0.26772828]
[1749317375426,0.30032445,105660.0,105650.0,0.26772828]
[1749317376315,0.30032445,105660.0,105650.0,0.36412776]
[1749317377194,0.30032445,105660.0,105650.0,0.35466318]
[1749317377426,0.48961084,105660.0,105650.0,0.35466318]
[1749317378347,0.30032445,105660.0,105650.0,0.36412776]
[1749317378819,0.48961137,105660.0,105650.0,0.35466318]
[1749317380479,0.30032498,105660.0,105650.0,0.35466318]
[1749317380717,0.30032498,105660.0,105650.0,0.36412776]
[1749317382015,0.29086067,105660.0,105650.0,0.36412776]
[1749317382839,0.48014706,105660.0,105650.0,0.35466318]
[1749317383944,0.48014706,105660.0,105650.0,0.71983851]
[1749317384158,0.49787643,105660.0,105650.0,0.71983851]
[1749317384389,0.48014706,105660.0,105650.0,0.71983851]
[1749317384601,0.49787646,105660.0,105650.0,0.71983851]
[1749317385047,0.49787644,105660.0,105650.0,0.71983851]
[1749317385287,0.48014706,105660.0,105650.0,0.71983851]
[1749317385514,0.48014706,105660.0,105650.0,0.34519851]
[1749317385765,0.49787643,105660.0,105650.0,0.71983851]
[1749317385991,0.48014706,105660.0,105650.0,0.71983851]
[1749317386154,0.49787639,105660.0,105650.0,0.69527375]
[1749317386314,0.48014706,105660.0,105650.0,0.69527375]
[1749317387235,0.49787645,105660.0,105650.0,0.69527375]
[1749317387439,0.48014706,105660.0,105650.0,0.69527375]
[1749317387635,0.49787638,105660.0,105650.0,0.69527375]
[1749317387853,0.49787641,105660.0,105650.0,0.69527375]
[1749317388057,0.48014706,105660.0,105650.0,0.69527375]
[1749317388477,0.3085992,105660.0,105650.0,0.69527375]
[1749317388674,0.48014706,105660.0,105650.0,0.69527375]
[1749317388874,0.49788561,105660.0,105650.0,0.69527375]
[1749317389055,0.48014706,105660.0,105650.0,0.71147375]
[1749317389261,0.49788564,105660.0,105650.0,0.71147375]
[1749317389500,0.48014706,105660.0,105650.0,0.72093851]
[1749317389917,0.49788555,105660.0,105650.0,0.72093851]
[1749317390061,0.48014706,105660.0,105650.0,0.72093851]
[1749317390262,0.49788556,105660.0,105650.0,0.72093851]
[1749317390453,0.49788563,105660.0,105650.0,0.72093851]
[1749317390651,0.4978856,105660.0,105650.0,0.72093851]
[1749317391078,0.49788558,105660.0,105650.0,0.72093851]
[1749317391298,0.50084561,105660.0,105650.0,0.72042245]
[1749317391870,0.48014706,105660.0,105650.0,0.72042245]
[1749317392089,0.48310707,105660.0,105650.0,0.72042245]
[1749317392310,0.49788836,105660.0,105650.0,0.72042245]
[1749317392505,0.49788839,105660.0,105650.0,0.72042245]
[1749317392724,0.49788809,105660.0,105650.0,0.72988712]
[1749317392935,0.50084834,105660.0,105650.0,0.72042245]
[1749317393223,0.49788833,105660.0,105650.0,0.72042245]
[1749317393454,0.48310708,105660.0,105650.0,0.72042245]
[1749317393649,0.49788819,105660.0,105650.0,0.72042245]
[1749317393860,0.49788835,105660.0,105650.0,0.72042245]
[1749317394089,0.50084838,105660.0,105650.0,0.72042245]
[1749317394301,0.48310708,105660.0,105650.0,0.70422245]
[1749317394513,0.49788838,105660.0,105650.0,0.70422245]
[1749317394725,0.48310707,105660.0,105650.0,0.70422245]
[1749317394935,0.48310708,105660.0,105650.0,0.70422245]
[1749317395153,0.50084833,105660.0,105650.0,0.70422245]
[1749317395402,0.50084835,105660.0,105650.0,0.70422245]
[1749317395610,0.49788836,105660.0,105650.0,0.70422245]
[1749317395819,0.4978884,105660.0,105650.0,0.70422245]
[1749317396029,0.48310708,105660.0,105650.0,0.70422245]
[1749317396248,0.48310708,105660.0,105650.0,0.69475778]
[1749317396453,0.48014706,105660.0,105650.0,0.69475778]
[1749317396691,0.49790167,105660.0,105650.0,0.70422263]
[1749317396881,0.50086164,105660.0,105650.0,0.70422263]
[1749317397125,0.5008616,105660.0,105650.0,0.70422263]
[1749317397556,0.50086158,105660.0,105650.0,0.70422263]
[1749317397736,0.48014706,105660.0,105650.0,0.70422263]
[1749317398144,0.50086127,105660.0,105650.0,0.70422263]
[1749317398361,0.48310702,105660.0,105650.0,0.70422263]
[1749317398567,0.50086134,105660.0,105650.0,0.70422263]
[1749317398769,0.48014706,105660.0,105650.0,0.70422263]
[1749317398887,0.49790136,105660.0,105650.0,0.70422263]
[1749317399093,0.48014706,105660.0,105650.0,0.70422263]
[1749317399787,0.48310707,105660.0,105650.0,0.70422263]
[1749317400055,0.49790161,105660.0,105650.0,0.70422263]
[1749317400187,0.49139757,105660.0,105650.0,0.70422263]
[1749317400389,0.48843756,105660.0,105650.0,0.70422263]
[1749317400609,0.49139757,105660.0,105650.0,0.70422263]
[1749317400820,0.47068301,105660.0,105650.0,0.70422263]
[1749317401025,0.49139814,105660.0,105650.0,0.70422263]
[1749317401461,0.47364302,105660.0,105650.0,0.70422263]
[1749317401876,0.47364303,105660.0,105650.0,0.70422263]
[1749317402106,0.47068301,105660.0,105650.0,0.70422263]
[1749317402340,0.49139817,105660.0,105650.0,0.70422263]
[1749317402782,0.47068301,105660.0,105650.0,0.70422263]
[1749317403022,0.49139817,105660.0,105650.0,0.70422263]
[1749317403424,0.47364303,105660.0,105650.0,0.70422263]
[1749317403624,0.49139817,105660.0,105650.0,0.70422263]
[1749317404513,0.47364303,105660.0,105650.0,0.71368739]
[1749317404718,0.50086201,105660.0,105650.0,0.71368739]
[1749317404922,0.48310734,105660.0,105650.0,0.71368739]
[1749317405099,0.50086201,105660.0,105650.0,0.70422263]
[1749317405312,0.48014732,105660.0,105650.0,0.71368739]
[1749317405468,0.48310734,105660.0,105650.0,0.71368739]
[1749317405675,0.48014732,105660.0,105650.0,0.70422263]
[1749317405875,0.49790201,105660.0,105650.0,0.70422263]
[1749317406176,0.48014732,105660.0,105650.0,0.70422263]
[1749317406381,0.50086075,105660.0,105650.0,0.71368739]
[1749317406588,0.49790074,105660.0,105650.0,0.71368739]
[1749317406790,0.48310733,105660.0,105650.0,0.70422263]
[1749317407026,0.48014732,105660.0,105650.0,0.70422263]
[1749317407238,0.50086077,105660.0,105650.0,0.70422263]
[1749317407446,0.49790076,105660.0,105650.0,0.70422263]
[1749317407652,0.50086076,105660.0,105650.0,0.70422263]
[1749317407850,0.29086093,105660.0,105650.0,0.71368739]
[1749317408077,0.30861435,105660.0,105650.0,0.71368739]
[1749317408304,0.31157436,105660.0,105650.0,0.71368739]
[1749317408708,0.30861435,105660.0,105650.0,0.71368739]
[1749317408914,0.31157436,105660.0,105650.0,0.70422263]
[1749317409123,0.30861435,105660.0,105650.0,0.70422263]
[1749317409328,0.30861434,105660.0,105650.0,0.70422263]
[1749317409528,0.31157435,105660.0,105650.0,0.70422263]
[1749317409780,0.30861434,105660.0,105650.0,0.69475778]
[1749317409985,0.50086075,105660.0,105650.0,0.70422263]
[1749317410336,0.48310733,105660.0,105650.0,0.70422263]
[1749317410581,0.49790074,105660.0,105650.0,0.70422263]
[1749317410954,0.28435628,105660.0,105650.0,0.70422263]
[1749317411155,0.50086032,105660.0,105650.0,0.69475778]
[1749317411358,0.4979003,105660.0,105650.0,0.70422263]
[1749317411826,0.50086626,105660.0,105650.0,0.70370042]
[1749317412041,0.4925712,105660.0,105650.0,0.71316518]
[1749317412234,0.48961119,105660.0,105650.0,0.70370042]
[1749317412435,0.50737056,105660.0,105650.0,0.70370042]
[1749317412645,0.4925712,105660.0,105650.0,0.70370042]
[1749317412851,0.50737057,105660.0,105650.0,0.70370042]
[1749317413090,0.51033058,105660.0,105650.0,0.70370042]
[1749317413264,0.4925712,105660.0,105650.0,0.70370042]
[1749317413468,0.51033058,105660.0,105650.0,0.70370042]
[1749317413645,0.4925712,105660.0,105650.0,0.70370042]
[1749317413847,0.4925712,105660.0,105650.0,0.71316518]
[1749317414022,0.51033059,105660.0,105650.0,0.71316518]
[1749317414212,0.51033057,105660.0,105650.0,0.71316518]
[1749317414630,0.51033058,105660.0,105650.0,0.71316518]
[1749317415284,0.4925712,105660.0,105650.0,0.71316518]
[1749317415458,0.51033058,105660.0,105650.0,0.70370042]
[1749317416079,0.51033067,105660.0,105650.0,0.70370042]
[1749317416382,0.50737066,105660.0,105650.0,0.70370042]
[1749317416553,0.50737066,105660.0,105650.0,0.71316518]
[1749317416754,0.51033066,105660.0,105650.0,0.71316518]
[1749317416950,0.48961119,105660.0,105650.0,0.71316518]
[1749317417152,0.51033066,105660.0,105650.0,0.71316518]
[1749317417847,0.50737066,105660.0,105650.0,0.70370042]
[1749317418051,0.4925712,105660.0,105650.0,0.70370042]
[1749317418282,0.50737066,105660.0,105650.0,0.70370042]
[1749317418490,0.51033067,105660.0,105650.0,0.70370042]
[1749317418689,0.48961119,105660.0,105650.0,0.70370042]
[1749317419001,0.51033067,105660.0,105650.0,0.70370042]
[1749317419573,0.50737066,105660.0,105650.0,0.71316518]
[1749317419791,0.48961119,105660.0,105650.0,0.71316518]
[1749317420022,0.50737076,105660.0,105650.0,0.71316518]
[1749317420361,0.51033077,105660.0,105650.0,0.70370042]
[1749317420562,0.50737077,105660.0,105650.0,0.70370042]
[1749317420767,0.51033078,105660.0,105650.0,0.70370042]
[1749317421212,0.51033078,105660.0,105650.0,0.31013063]
[1749317421387,0.51033078,105660.0,105650.0,0.70366042]
[1749317421604,0.51033116,105660.0,105650.0,0.70366042]
[1749317422161,0.48961119,105660.0,105650.0,0.70366042]
[1749317422361,0.51033116,105660.0,105650.0,0.70366042]
[1749317422521,0.51033114,105660.0,105650.0,0.70366042]
[1749317422889,0.51033107,105660.0,105650.0,0.70366042]
[1749317423311,0.31158035,105660.0,105650.0,0.71312518]
[1749317423522,0.30862035,105660.0,105650.0,0.70366042]
[1749317423723,0.29382048,105660.0,105650.0,0.70366042]
[1749317424090,0.31808231,105660.0,105650.0,1.12600618]
[1749317424290,0.31157812,105660.0,105650.0,1.14210618]
[1749317424498,0.30211425,105660.0,105650.0,1.14210618]
[1749317424711,0.31157821,105660.0,105650.0,1.14210618]
[1749317425042,0.29381945,105660.0,105650.0,1.14210618]
[1749317425248,0.31808234,105660.0,105650.0,1.14210618]
[1749317425432,0.31157813,105660.0,105650.0,1.14210618]
[1749317425640,0.31808234,105660.0,105650.0,1.14210618]
[1749317425881,0.32104225,105660.0,105650.0,1.14210618]
[1749317426642,0.31157811,105660.0,105650.0,1.14210618]
[1749317426843,0.3086182,105660.0,105650.0,1.14210618]
[1749317427097,0.32104219,105660.0,105650.0,1.14210618]
[1749317427303,0.32104195,105660.0,105650.0,1.14210618]
[1749317427501,0.30032356,105660.0,105650.0,1.14210618]
[1749317427705,0.30328349,105660.0,105650.0,1.14210618]
[1749317428013,0.33050252,105660.0,105650.0,1.10707693]
[1749317428218,0.33050302,105660.0,105650.0,1.11654169]
[1749317428648,0.32103932,105660.0,105650.0,1.12600636]
[1749317428821,0.30328411,105660.0,105650.0,1.12600636]
[1749317429121,0.32103891,105660.0,105650.0,1.12704409]
[1749317429263,0.3003241,105660.0,105650.0,1.12704409]
[1749317429465,0.30328408,105660.0,105650.0,1.12704409]
[1749317429674,0.32103898,105660.0,105650.0,1.12704409]
[1749317429881,0.33050329,105660.0,105650.0,1.11757951]
[1749317430111,0.33050315,105660.0,105650.0,1.11757951]
[1749317430340,0.32754378,105660.0,105650.0,1.11757951]
[1749317430750,0.32754358,105660.0,105650.0,1.11757951]
[1749317430974,0.30978832,105660.0,105650.0,1.09865008]
[1749317431238,0.51979054,105660.0,105650.0,1.10811484]
[1749317432178,0.51979062,105660.0,105650.0,1.10811484]
[1749317432395,0.51979059,105660.0,105650.0,1.10811484]
[1749317432616,0.30978894,105660.0,105650.0,1.10811484]
[1749317432838,0.32754397,105660.0,105650.0,1.10811484]
[1749317433053,0.32754391,105660.0,105650.0,1.10811484]
[1749317433268,0.33050418,105660.0,105650.0,1.10811484]
[1749317433947,0.32754425,105660.0,105650.0,1.10811484]
[1749317434159,0.33050416,105660.0,105650.0,1.10811484]
[1749317434359,0.3305042,105660.0,105650.0,1.10811484]
[1749317434629,0.33050469,105660.0,105650.0,1.10811484]
[1749317434826,0.32104073,105660.0,105650.0,1.10811484]
[1749317435671,0.30032498,105660.0,105650.0,1.09861008]
[1749317435877,0.30328497,105660.0,105650.0,1.09861008]
[1749317436090,0.51032683,105660.0,105650.0,1.10807529]
[1749317436302,0.49257136,105660.0,105650.0,1.10807529]
[1749317436505,0.48961137,105660.0,105650.0,1.10807529]
[1749317436749,0.51032712,105660.0,105650.0,0.70465878]
[1749317436942,0.50086307,105660.0,105650.0,1.10807529]
[1749317437237,0.50086297,105660.0,105650.0,1.09861044]
[1749317437493,0.48310731,105660.0,105650.0,1.10807529]
[1749317437693,0.49790349,105660.0,105650.0,1.10807529]
[1749317437893,0.48014732,105660.0,105650.0,1.10807529]
[1749317438017,0.4979035,105660.0,105650.0,1.10807529]
[1749317438495,0.4979035,105660.0,105650.0,0.70465878]
[1749317438496,0.48014732,105660.0,105650.0,0.70465878]
[1749317438702,0.50086359,105660.0,105650.0,0.70465878]
[1749317438901,0.50086361,105660.0,105650.0,0.70465878]
[1749317439101,0.49790359,105660.0,105650.0,0.70465878]
[1749317439306,0.49139946,105660.0,105650.0,0.69519402]
[1749317439637,0.48843949,105660.0,105650.0,0.67919402]
[1749317440043,0.4736432,105660.0,105650.0,0.67919402]
[1749317440169,0.49139952,105660.0,105650.0,0.67919402]
[1749317440511,0.47068318,105660.0,105650.0,0.68865896]
[1749317440948,0.4913995,105660.0,105650.0,0.68865896]
[1749317441149,0.47068318,105660.0,105650.0,0.68865896]
[1749317441353,0.4913995,105660.0,105650.0,0.67919402]
[1749317441555,0.47068318,105660.0,105650.0,0.67919402]
[1749317441758,0.4884395,105660.0,105650.0,0.67919402]
[1749317441958,0.48843949,105660.0,105650.0,0.67919402]
[1749317442083,0.47068318,105660.0,105650.0,0.67919402]
[1749317442434,0.47068318,105660.0,105650.0,0.68865896]
[1749317442684,0.48843949,105660.0,105650.0,0.68865896]
[1749317442891,0.47364319,105660.0,105650.0,0.68865896]
[1749317443099,0.47068318,105660.0,105650.0,0.68865896]
[1749317443284,0.49139949,105660.0,105650.0,0.68865896]
[1749317443496,0.47068318,105660.0,105650.0,0.68865896]
[1749317443795,0.49139946,105660.0,105650.0,0.68865896]
[1749317444041,0.49139948,105660.0,105650.0,0.68865896]
[1749317444296,0.49139947,105660.0,105650.0,0.68865896]
[1749317444541,0.49139947,105660.0,105650.0,0.67919402]
[1749317444798,0.48843945,105660.0,105650.0,0.68865896]
[1749317445063,0.49139945,105660.0,105650.0,0.68865896]
[1749317445276,0.47364318,105660.0,105650.0,0.68865896]
[1749317445454,0.47364316,105660.0,105650.0,0.68865896]
[1749317445663,0.47364319,105660.0,105650.0,0.68865896]
[1749317446101,0.49139944,105660.0,105650.0,0.68854542]
[1749317446324,0.47364319,105660.0,105650.0,0.68854542]
[1749317446531,0.47068318,105660.0,105650.0,0.68854542]
[1749317446734,0.49139944,105660.0,105650.0,0.68854542]
[1749317446936,0.48843942,105660.0,105650.0,0.68854542]
[1749317447144,0.49139944,105660.0,105650.0,0.68854542]
[1749317447374,0.47364319,105660.0,105650.0,0.67908048]
[1749317447587,0.49139946,105660.0,105650.0,0.67908048]
[1749317448022,0.46951092,105660.0,105650.0,0.18379948]
[1749317448234,0.45175465,105660.0,105650.0,0.66968899]
[1749317448445,0.45175465,105660.0,105650.0,0.68861914]
[1749317448698,0.46951095,105660.0,105650.0,0.68861914]
[1749317448926,0.48193509,105660.0,105650.0,0.69808399]
[1749317449138,0.47897511,105660.0,105650.0,0.69808399]
[1749317449351,0.48193511,105660.0,105650.0,0.69808399]
[1749317449552,0.4641788,105660.0,105650.0,0.69808399]
[1749317449767,0.47897511,105660.0,105650.0,0.69808399]
[1749317449976,0.47897511,105660.0,105650.0,0.68861896]
[1749317450196,0.47897514,105660.0,105650.0,0.67915411]
[1749317450400,0.46121879,105660.0,105650.0,0.68861896]
[1749317450612,0.48193509,105660.0,105650.0,0.68861896]
[1749317451286,0.48193509,105660.0,105650.0,0.67915411]
[1749317451501,0.48193555,105660.0,105650.0,0.67915411]
[1749317451707,0.46417887,105660.0,105650.0,0.67915411]
[1749317451922,0.4819356,105660.0,105650.0,0.67915411]
[1749317452157,0.46417886,105660.0,105650.0,0.67915411]
[1749317452614,0.46121879,105660.0,105650.0,0.67915411]
[1749317453064,0.46417886,105660.0,105650.0,0.67915411]
[1749317453495,0.46417881,105660.0,105650.0,0.67915411]
[1749317453715,0.46121879,105660.0,105650.0,0.67915411]
[1749317454162,0.48193526,105660.0,105650.0,0.67915411]
[1749317454412,0.47247112,105660.0,105650.0,0.67915411]
[1749317454671,0.47247107,105660.0,105650.0,0.66968899]
[1749317454914,0.45471468,105660.0,105650.0,0.67915411]
[1749317455156,0.46951109,105660.0,105650.0,0.67915411]
[1749317455626,0.45175465,105660.0,105650.0,0.67915411]
[1749317455868,0.47247116,105660.0,105650.0,0.67915411]
[1749317456245,0.46951109,105660.0,105650.0,0.67915411]
[1749317456471,0.4695091,105660.0,105650.0,0.67915411]
[1749317456889,0.46950912,105660.0,105650.0,0.67915411]